bitfinex/quotes_ETHUSD_20250428
["timestamp","ask_amount","ask_price","bid_price","bid_amount"]
[1745868588265,11.42349617,1797.5,1797.1,5.61450913]
[1745868588466,11.42349617,1797.5,1797.1,11.17881215]
[1745868588667,11.42349617,1797.5,1797.1,5.61430132]
[1745868589178,11.42349617,1797.5,1797.1,5.61449379]
[1745868589375,5.56367111,1797.4,1797.1,0.05]
[1745868589770,16.98693409,1797.5,1797.1,5.61451946]
[1745868590183,11.42341303,1797.5,1797.1,5.61451946]
[1745868590681,16.98700053,1797.5,1797.1,5.61451946]
[1745868590981,16.98699704,1797.5,1797.1,5.61451946]
[1745868591182,11.42341303,1797.5,1797.1,5.61451946]
[1745868593685,11.42341303,1797.5,1797.1,5.61431889]
[1745868594894,13.12206604,1797.5,1797.1,5.61431889]
[1745868595196,18.68563482,1797.5,1797.1,5.61431889]
[1745868595398,13.12206604,1797.5,1797.1,5.61431889]
[1745868597107,11.42341303,1797.5,1797.1,5.61431889]
[1745868597599,11.42247049,1797.8,1797.3,5.56372284]
[1745868597801,5.56269168,1797.7,1797.3,5.56372284]
[1745868598306,5.56269168,1797.7,1797.4,5.56357328]
[1745868598803,5.56269168,1797.7,1797.3,5.56368297]
[1745868599102,5.56269168,1797.7,1797.4,5.5635824]
[1745868601401,11.42255177,1797.8,1797.4,5.56330088]
[1745868601581,5.86,1797.8,1797.4,5.56330088]
[1745868601919,5.86,1797.7,1797.6,5.56287184]
[1745868602071,16.697,1797.9,1797.6,5.56287184]
[1745868602072,5.859,1797.8,1797.7,5.56251373]
[1745868603225,5.859,1798.2,1798.0,5.56165264]
[1745868603372,5.859,1798.2,1797.9,5.56185043]
[1745868603570,5.56051641,1798.4,1798.0,5.56171098]
[1745868603769,5.56010831,1798.6,1798.1,5.56114778]
[1745868603973,5.55973881,1798.7,1798.3,5.56055707]
[1745868604171,5.859,1798.6,1798.4,6.3695981]
[1745868604613,5.859,1798.6,1798.4,6.3694055]
[1745868604776,5.859,1798.6,1798.4,11.92979967]
[1745868604979,22.25978217,1799.0,1798.5,5.56000479]
[1745868605310,5.41780779,1799.6,1798.5,5.56000479]
[1745868605311,5.858,1799.2,1798.8,5.55926173]
[1745868605571,5.55742176,1799.4,1799.0,5.55851785]
[1745868605718,11.41525016,1799.5,1799.1,5.55830645]
[1745868606105,22.25468262,1799.7,1799.2,0.7518]
[1745868606423,5.55712898,1799.5,1799.2,0.7518]
[1745868606584,11.39995884,1799.6,1799.2,0.7518]
[1745868607309,5.55712127,1799.5,1799.2,0.7518]
[1745868608220,5.843,1799.6,1799.2,0.7518]
[1745868608398,5.843,1799.6,1799.0,0.55]
[1745868608598,5.55798418,1799.3,1799.0,0.55]
[1745868608821,5.55769458,1799.4,1799.0,0.55]
[1745868609837,0.7663,1799.3,1798.7,0.7856]
[1745868610002,5.55913476,1798.9,1798.7,0.7856]
[1745868610207,5.55882953,1799.0,1798.7,0.7856]
[1745868610435,11.11773022,1799.0,1798.7,0.7856]
[1745868610732,5.55882953,1799.0,1798.7,0.7856]
[1745868611025,5.5589666,1798.9,1798.7,0.7856]
[1745868612108,5.55877434,1799.0,1798.7,0.7856]
[1745868613301,5.841,1799.1,1798.7,0.7856]
[1745868613508,5.55883301,1799.0,1798.7,0.7856]
[1745868614350,11.3995084,1799.1,1798.2,0.8175]
[1745868614351,5.5595708,1798.7,1798.2,0.8175]
[1745868614548,5.56034201,1798.5,1798.2,0.8175]
[1745868614830,5.84,1798.6,1798.0,0.8238]
[1745868615004,5.56049822,1798.4,1798.0,0.8238]
[1745868615211,5.56174193,1798.0,1797.7,1.01704043]
[1745868615405,5.56165528,1798.1,1797.7,1.01704043]
[1745868615730,5.56175207,1798.0,1797.7,1.01704043]
[1745868616131,5.56214654,1797.9,1797.7,1.01704043]
[1745868617036,5.56235398,1797.8,1797.7,0.19324043]
[1745868617841,5.56345732,1797.5,1797.1,0.8394]
[1745868618129,5.841,1797.5,1797.1,0.8394]
[1745868618297,5.56392923,1797.3,1797.1,0.8394]
[1745868618497,5.56378865,1797.4,1797.1,0.8394]
[1745868619327,11.1276347,1797.4,1797.1,0.8394]
[1745868619538,5.56374923,1797.4,1797.1,0.05]
[1745868619749,5.841,1797.5,1797.1,0.05]
[1745868619750,5.56407071,1797.3,1797.1,0.05]
[1745868619907,5.56421099,1797.2,1797.1,0.05]
[1745868620636,6.59224931,1797.2,1797.1,0.05]
[1745868622038,5.56401567,1797.3,1797.1,0.05]
[1745868622202,5.56379385,1797.4,1797.1,0.05]
[1745868622407,5.842,1797.3,1797.1,0.05]
[1745868623200,11.40594335,1797.3,1797.1,0.05]
[1745868623405,11.40609444,1797.3,1797.1,0.05]
[1745868623828,5.842,1797.3,1797.1,0.05]
[1745868624029,5.842,1797.3,1797.1,5.61449385]
[1745868624239,5.842,1797.3,1797.1,6.17584563]
[1745868624741,5.5637137,1797.4,1797.1,0.61146416]
[1745868625040,5.5637137,1797.4,1797.1,0.05]
[1745868625241,11.40643172,1797.5,1797.1,5.614335]
[1745868625561,5.843,1797.6,1797.3,6.33241675]
[1745868625703,11.40608788,1797.6,1797.3,0.7687]
[1745868625909,11.40608788,1797.6,1797.1,5.6143304]
[1745868626122,5.843,1797.6,1797.3,5.56389024]
[1745868626511,5.843,1797.6,1797.1,6.9444531]
[1745868626843,11.40616718,1797.6,1797.2,5.5640601]
[1745868627149,5.56339045,1797.5,1797.1,6.94451466]
[1745868627313,5.5636726,1797.4,1797.1,0.8187]
[1745868627512,5.56421099,1797.2,1797.1,0.05]
[1745868628459,5.56372265,1797.4,1797.1,0.05]
[1745868628811,11.1276003,1797.4,1797.1,0.05]
[1745868629152,5.56372265,1797.4,1797.1,0.05]
[1745868629353,5.844,1797.5,1797.2,6.33287591]
[1745868629506,5.844,1797.6,1797.4,5.56352801]
[1745868629707,11.4064519,1797.8,1797.4,11.12693562]
[1745868629915,11.40590786,1798.0,1797.6,6.33177284]
[1745868630220,5.56214521,1797.9,1797.6,0.7689]
[1745868630540,11.40590786,1798.0,1797.6,6.33168607]
[1745868630742,5.844,1798.0,1797.7,5.56259814]
[1745868630947,11.40573552,1798.0,1797.6,6.96490919]
[1745868631644,11.40573552,1798.0,1797.6,6.96484665]
[1745868631872,11.40573552,1798.0,1797.6,12.52763346]
[1745868632079,5.56126441,1798.2,1797.7,5.56237855]
[1745868632387,11.40543464,1798.1,1797.7,6.80890765]
[1745868632781,5.56178039,1798.0,1797.7,0.69644472]
[1745868633380,11.40554675,1798.1,1797.7,6.25907289]
[1745868633783,5.844,1798.1,1797.7,0.69644472]
[1745868633967,5.844,1798.1,1797.8,5.56223504]
[1745868635274,5.844,1798.1,1797.8,11.12441983]
[1745868635662,5.844,1798.1,1797.8,5.56218479]
[1745868637009,5.844,1798.1,1797.7,5.56249147]
[1745868637219,5.844,1798.1,1797.8,5.56222391]
[1745868638020,5.844,1798.1,1797.6,0.7689]
[1745868638179,11.40554311,1798.1,1797.7,5.56250413]
[1745868638378,11.40554311,1798.1,1797.8,5.56233557]
[1745868638579,11.40554311,1798.1,1797.7,5.56244248]
[1745868639212,5.844,1798.1,1797.7,5.56243898]
[1745868639517,5.844,1798.1,1797.8,5.56225632]
[1745868640118,11.40553892,1798.1,1797.7,5.56243898]
[1745868640568,5.844,1798.1,1797.7,5.56243898]
[1745868640771,5.844,1798.1,1798.0,5.56173526]
[1745868640991,0.8194,1798.3,1798.0,5.56173526]
[1745868640992,5.828,1798.3,1798.1,5.56142489]
[1745868641712,5.56154911,1798.1,1797.7,7.02200554]
[1745868641912,5.56233073,1797.9,1797.5,6.34646785]
[1745868642215,5.828,1797.8,1797.5,5.56317794]
[1745868642403,5.828,1797.8,1797.4,0.55]
[1745868642585,5.828,1797.8,1797.7,6.3496634]
[1745868642788,5.828,1797.8,1797.7,6.8996634]
[1745868643142,5.828,1798.1,1797.7,8.1457772]
[1745868643717,5.828,1798.1,1797.8,5.56222423]
[1745868644389,6.36471794,1798.3,1797.9,5.56178068]
[1745868644715,5.827,1798.3,1798.0,5.56155365]
[1745868645028,5.827,1798.3,1797.8,6.11234019]
[1745868645193,5.827,1798.4,1798.1,5.56142594]
[1745868645815,11.38754398,1798.4,1798.0,6.11155781]
[1745868646317,11.38763524,1798.4,1798.0,11.67306402]
[1745868646476,16.94838104,1798.4,1798.0,6.11152433]
[1745868646674,11.38763524,1798.4,1798.0,6.11152433]
[1745868647912,5.827,1798.4,1798.1,5.56135579]
[1745868648081,11.38772426,1798.4,1798.0,6.11152433]
[1745868648430,11.38772426,1798.4,1798.0,6.11152261]
[1745868649030,5.56085278,1798.3,1798.0,0.55]
[1745868649197,11.38765899,1798.4,1798.0,6.11173174]
[1745868649720,11.38765899,1798.4,1798.0,6.11158532]
[1745868650675,5.56095458,1798.3,1798.0,0.55]
[1745868650816,11.38763397,1798.4,1798.0,6.11160843]
[1745868651022,5.5609459,1798.3,1797.9,6.34888727]
[1745868651388,5.5609459,1798.3,1797.9,6.34882507]
[1745868651588,5.5609459,1798.3,1797.9,5.56181299]
[1745868652117,13.16286716,1798.4,1797.7,7.57515097]
[1745868652118,13.16273274,1798.4,1797.7,7.57515097]
[1745868652322,5.56189451,1798.0,1797.6,5.56286627]
[1745868652494,5.56189451,1798.0,1797.5,6.32955778]
[1745868652495,5.56218936,1797.9,1797.5,6.32955778]
[1745868652819,5.56249164,1797.8,1797.3,6.96334359]
[1745868652998,5.56249164,1797.8,1797.4,6.11357083]
[1745868653195,11.38907428,1797.9,1797.5,5.56315191]
[1745868653513,5.56257722,1797.8,1797.4,5.56345256]
[1745868653898,5.56267034,1797.7,1797.3,6.96339651]
[1745868654081,1.78027287,1797.8,1797.1,5.61439105]
[1745868654426,5.56319672,1797.6,1797.1,11.17868712]
[1745868654631,5.56319672,1797.6,1797.2,5.5641976]
[1745868655431,5.5626634,1797.7,1797.3,5.56390105]
[1745868655644,7.34286139,1797.8,1797.4,5.56347317]
[1745868655805,5.56289121,1797.7,1797.3,5.56379472]
[1745868656344,5.56307432,1797.6,1797.2,5.56409621]
[1745868657150,11.86004938,1797.7,1797.2,5.56398997]
[1745868657332,6.29698819,1797.7,1797.3,5.56388499]
[1745868658535,6.29698819,1797.7,1797.3,11.12759979]
[1745868658715,6.29698819,1797.7,1797.3,11.1274058]
[1745868658910,11.85996099,1797.7,1797.3,5.563691]
[1745868659115,11.85991431,1797.7,1797.3,5.563691]
[1745868659961,11.85991164,1797.7,1797.3,5.563691]
[1745868660126,5.56301869,1797.6,1797.2,5.56401626]
[1745868660327,6.29698819,1797.7,1797.3,5.56378573]
[1745868660531,11.85992067,1797.7,1797.3,5.56378573]
[1745868660861,6.29698819,1797.7,1797.3,5.56378573]
[1745868661023,0.8031,1797.8,1797.5,5.56316725]
[1745868661220,0.8031,1797.8,1797.5,5.56313194]
[1745868661433,0.8031,1797.8,1797.6,5.56294196]
[1745868661620,0.8031,1797.8,1797.5,5.56328233]
[1745868662763,6.05,1798.2,1797.9,5.56186878]
[1745868662916,6.6047,1798.3,1797.9,5.56186878]
[1745868663321,0.7767,1798.3,1798.0,5.56171145]
[1745868663571,0.7767,1798.3,1797.8,0.8175]
[1745868663572,5.828,1798.3,1797.8,9.37983787]
[1745868663733,5.828,1798.3,1798.0,5.56154261]
[1745868664060,5.828,1798.3,1798.0,6.673883]
[1745868666363,5.828,1798.3,1798.0,6.67388216]
[1745868666567,5.828,1798.3,1798.1,5.56131615]
[1745868666766,5.828,1798.3,1798.0,5.56154177]
[1745868667554,16.7,1798.6,1798.1,1.3402]
[1745868667870,5.812,1798.7,1798.5,5.56016324]
[1745868668026,5.812,1798.7,1798.5,5.56017292]
[1745868668359,5.811,1798.9,1798.6,5.55967508]
[1745868668562,5.811,1798.9,1798.7,5.55936292]
[1745868668859,0.8014,1799.1,1798.6,0.55]
[1745868669037,5.811,1799.0,1798.8,6.34935298]
[1745868669222,5.811,1799.0,1798.8,0.7902]
[1745868669461,23.3094,1799.3,1798.8,6.34928403]
[1745868669663,23.3094,1799.3,1798.9,11.11772157]
[1745868669891,23.3094,1799.3,1799.0,5.5586219]
[1745868670097,23.3094,1799.3,1798.9,5.55874854]
[1745868670291,22.508,1799.3,1799.0,0.55]
[1745868670491,22.508,1799.3,1799.0,6.10863909]
[1745868670861,22.508,1799.3,1799.1,5.55831298]
[1745868671099,22.508,1799.3,1799.2,5.55802578]
[1745868671297,5.811,1799.3,1799.2,5.55802578]
[1745868671501,5.811,1799.3,1799.1,11.11642116]
[1745868671672,5.811,1799.3,1799.1,5.55810818]
[1745868671867,5.811,1799.3,1799.1,1.28334186]
[1745868672194,5.811,1799.3,1799.0,6.10843304]
[1745868672499,5.811,1799.3,1799.1,5.55832182]
[1745868672695,5.811,1799.3,1799.1,0.55]
[1745868674409,5.811,1799.3,1798.8,4.4801284]
[1745868674706,5.55833472,1799.1,1798.6,9.35945788]
[1745868675003,6.34193851,1799.2,1798.8,5.55914248]
[1745868675207,11.36737768,1799.1,1798.7,6.49531081]
[1745868675499,5.809,1799.1,1798.8,5.55915911]
[1745868675671,5.809,1799.1,1798.9,5.55885095]
[1745868676006,5.809,1799.1,1798.8,0.55]
[1745868676688,5.809,1799.1,1798.8,6.10925193]
[1745868676885,5.809,1799.1,1798.8,7.27611747]
[1745868677097,11.36736566,1799.1,1798.8,1.71686554]
[1745868677300,5.809,1799.1,1798.9,5.55884511]
[1745868677501,5.809,1799.1,1798.8,7.27591862]
[1745868677705,5.809,1799.1,1798.9,5.55879875]
[1745868677878,6.34136162,1799.4,1799.0,6.37314369]
[1745868678078,11.36671696,1799.3,1799.0,0.8145]
[1745868678401,11.36689571,1799.3,1799.0,0.8145]
[1745868679103,6.34222635,1799.2,1798.9,1.28347174]
[1745868679270,0.7842,1799.2,1798.9,5.55888959]
[1745868679477,6.34233279,1799.2,1798.8,6.3913118]
[1745868679674,5.55850881,1799.1,1798.8,2.08227212]
[1745868680299,5.55850881,1799.1,1798.8,0.8322]
[1745868680503,6.34243421,1799.2,1798.8,6.39141675]
[1745868681015,11.90074092,1799.2,1798.8,6.39141675]
[1745868681318,5.55895269,1798.9,1798.7,0.55]
[1745868681487,5.55940286,1798.8,1798.5,1.19106945]
[1745868681826,5.5598799,1798.6,1798.5,1.19106945]
[1745868681979,5.56018904,1798.5,1798.1,0.8322]
[1745868682178,5.55999048,1798.6,1798.2,5.56094904]
[1745868682378,5.55967164,1798.7,1798.3,5.56068281]
[1745868682591,5.55967164,1798.7,1798.3,6.6728396]
[1745868682914,12.15259355,1798.8,1798.3,6.6727512]
[1745868683114,12.15259355,1798.8,1798.4,5.56033632]
[1745868683311,5.55957818,1798.7,1798.3,6.6727512]
[1745868683883,6.5932,1798.8,1798.4,5.56033882]
[1745868684076,12.15256637,1798.8,1798.4,6.22758838]
[1745868685120,5.809,1798.8,1798.5,1.359]
[1745868685323,5.809,1798.8,1798.7,0.55]
[1745868685617,5.809,1798.8,1798.7,6.1095708]
[1745868685912,5.809,1798.8,1798.7,0.55]
[1745868686115,5.55866312,1799.0,1798.7,0.55]
[1745868686280,5.809,1799.2,1798.9,5.55888352]
[1745868686610,11.3670462,1799.2,1798.8,6.36809123]
[1745868686923,11.3150745,1799.2,1798.9,5.55894014]
[1745868687107,11.3150745,1799.2,1798.9,0.55]
[1745868687281,5.809,1799.3,1799.1,5.55823799]
[1745868687477,5.809,1799.3,1799.1,0.55]
[1745868687693,6.32874763,1799.6,1799.2,5.55780053]
[1745868687907,5.809,1799.5,1799.2,6.36680053]
[1745868688093,11.36612547,1799.5,1799.3,0.63668005]
[1745868688291,11.36612547,1799.5,1799.2,0.809]
[1745868688515,5.809,1799.5,1799.2,0.809]
[1745868688840,5.809,1799.5,1799.2,6.36699239]
[1745868688984,11.36636251,1799.5,1799.2,0.809]
[1745868689183,5.55755099,1799.4,1799.2,0.809]
[1745868690309,5.809,1799.5,1799.2,0.809]
[1745868690516,5.809,1799.5,1799.2,6.36692873]
[1745868690692,5.809,1799.5,1799.3,0.63669287]
[1745868691294,5.809,1799.5,1799.3,6.19440368]
[1745868691592,5.809,1799.5,1799.3,6.19431148]
[1745868691992,5.808,1799.8,1799.5,5.55686338]
[1745868692193,5.808,1799.8,1799.6,6.92074333]
[1745868692398,5.808,1799.8,1799.6,1.36398634]
[1745868694731,5.808,1799.8,1799.6,6.92067725]
[1745868695040,5.808,1799.8,1799.6,1.36398634]
[1745868696125,5.808,1799.8,1799.4,1.3285]
[1745868696329,5.55710694,1799.5,1799.2,0.7785]
[1745868696694,5.55710694,1799.5,1799.3,0.55]
[1745868697135,5.55697632,1799.6,1799.3,0.55]
[1745868698591,5.55699866,1799.6,1799.3,0.55]
[1745868699022,11.11405416,1799.6,1799.3,0.55]
[1745868699327,5.55719262,1799.5,1799.3,0.55]
[1745868699628,5.55699866,1799.6,1799.3,6.10770325]
[1745868699798,5.55684892,1799.6,1799.3,1.23862033]
[1745868700224,5.55713336,1799.5,1799.3,1.23862033]
[1745868700524,5.55695102,1799.6,1799.3,1.23862033]
[1745868701024,5.55714477,1799.5,1799.3,1.23862033]
[1745868701324,5.55714477,1799.5,1799.3,0.55]
[1745868702501,0.762,1799.7,1799.3,6.10762588]
[1745868702831,6.31848247,1799.7,1799.3,6.10762588]
[1745868703026,5.808,1799.8,1799.3,3.55]
[1745868703231,5.808,1799.8,1799.6,6.36307217]
[1745868703431,5.808,1799.8,1799.7,6.74278885]
[1745868706396,5.808,1799.8,1799.7,6.19278885]
[1745868706602,5.808,1799.8,1799.7,6.74278885]
[1745868709543,0.05,1799.9,1799.8,6.1061729]
[1745868710042,0.05,1799.9,1799.8,5.5561729]
[1745868710239,0.05,1799.9,1799.8,7.28106908]
[1745868711542,0.05,1799.9,1799.8,11.04946908]
[1745868713440,0.05,1799.9,1799.8,4.72489618]
[1745868713941,0.05,1799.9,1799.8,1.17489618]
[1745868714139,0.05,1799.9,1799.7,0.63630722]
[1745868717702,5.60603078,1799.9,1799.7,0.63630722]
[1745868718025,5.60602466,1799.9,1799.5,0.55]
[1745868718415,5.55630638,1799.8,1799.5,0.55]
[1745868718920,5.55630638,1799.8,1799.5,6.10709008]
[1745868719235,5.60602466,1799.9,1799.5,6.10709008]
[1745868720305,5.60602466,1799.9,1799.5,6.10694316]
[1745868720506,5.60602466,1799.9,1799.6,0.61069432]
[1745868721914,0.05,1799.9,1799.8,5.5561729]
[1745868722236,0.05,1799.9,1799.7,5.5563024]
[1745868722969,0.7918,1799.8,1799.6,0.61069432]
[1745868723109,5.55753875,1799.4,1799.2,0.7959]
[1745868723313,5.55827191,1799.2,1799.0,0.7959]
[1745868723624,5.55798197,1799.3,1799.0,0.7959]
[1745868724147,6.34929965,1799.4,1799.0,6.35442889]
[1745868724347,6.34929965,1799.4,1799.1,0.63544289]
[1745868724552,0.7918,1799.4,1799.1,6.193773]
[1745868725746,0.7918,1799.4,1799.2,5.55792678]
[1745868726223,0.7918,1799.4,1799.1,6.19375567]
[1745868729347,0.7918,1799.4,1799.1,6.19358902]
[1745868729548,0.7918,1799.4,1799.2,0.6193589]
[1745868730612,0.7918,1799.4,1799.2,6.17736204]
[1745868730814,0.7918,1799.4,1799.2,0.6193589]
[1745868731017,11.34612362,1799.5,1799.2,0.6193589]
[1745868731747,11.34612362,1799.5,1799.2,6.17736631]
[1745868731945,5.789,1799.5,1799.3,0.61773663]
[1745868732347,5.789,1799.5,1799.3,6.17544654]
[1745868732552,5.789,1799.5,1799.3,6.17526798]
[1745868732758,5.789,1799.5,1799.4,5.55740802]
[1745868732926,11.9205358,1799.8,1799.4,5.55740802]
[1745868733126,5.5566646,1799.7,1799.4,1.2513576]
[1745868733357,5.5566646,1799.7,1799.4,6.80875835]
[1745868733652,12.13710312,1799.8,1799.4,1.2513576]
[1745868733832,5.55659221,1799.7,1799.4,1.2513576]
[1745868734031,5.55659221,1799.7,1799.4,6.80876171]
[1745868734233,5.55659221,1799.7,1799.5,0.68087617]
[1745868734824,5.55659221,1799.7,1799.4,6.80875475]
[1745868735256,0.05,1799.9,1799.6,5.55669303]
[1745868735457,0.05,1799.9,1799.8,6.1061729]
[1745868736336,0.05,1799.9,1799.8,6.1061729]
[1745868740892,0.05,1799.9,1799.8,12.31708069]
[1745868741058,0.05,1799.9,1799.8,15.31708069]
[1745868741358,0.05,1799.9,1799.8,17.40443455]
[1745868741540,0.05,1799.9,1799.8,17.8202071]
[1745868744267,6.5419,1800.7,1800.4,5.55423865]
[1745868744463,6.5419,1800.7,1800.5,0.55]
[1745868744698,5.55324835,1800.8,1800.5,0.55]
[1745868744893,0.05,1800.9,1800.8,6.10308751]
[1745868745097,0.05,1800.9,1800.7,0.55]
[1745868745501,0.05,1800.9,1800.7,6.10334404]
[1745868745791,0.05,1800.9,1800.7,7.35107181]
[1745868746195,0.05,1800.9,1800.8,6.10308751]
[1745868746825,0.05,1800.9,1800.8,0.55]
[1745868747391,0.05,1800.9,1800.6,0.55]
[1745868747556,0.8016,1800.8,1800.6,6.10347105]
[1745868747756,0.8016,1800.8,1800.6,5.55367407]
[1745868747971,0.8016,1800.8,1800.7,0.55]
[1745868748432,0.05,1800.9,1800.7,0.55]
[1745868749072,0.05,1800.9,1800.5,6.1038071]
[1745868749276,0.05,1800.9,1800.7,0.55]
[1745868749501,5.60278799,1800.9,1800.7,0.55]
[1745868750083,5.5531185,1800.8,1800.5,0.55]
[1745868750287,5.60293636,1800.9,1800.5,6.10397051]
[1745868750997,5.60293636,1800.9,1800.5,6.10380698]
[1745868752219,5.55385185,1800.6,1800.2,6.8243]
[1745868752418,5.55492026,1800.3,1800.0,0.7943]
[1745868753017,5.55492026,1800.3,1800.1,0.55]
[1745868753218,6.35578095,1800.5,1800.1,0.55]
[1745868753525,0.8016,1800.5,1800.3,5.55462539]
[1745868753678,5.77,1800.6,1800.3,5.55462539]
[1745868754479,11.32371266,1800.6,1800.3,5.55462539]
[1745868755113,5.77,1800.6,1800.1,1.23997416]
[1745868755321,5.77,1800.7,1800.5,5.55386975]
[1745868755778,6.39900974,1800.9,1800.5,5.55386975]
[1745868756179,5.77,1800.8,1800.5,5.55379442]
[1745868756399,5.77,1800.8,1800.6,5.55358764]
[1745868756678,5.77,1800.8,1800.5,6.10375573]
[1745868756882,5.77,1800.8,1800.5,1.23882557]
[1745868757426,5.77,1800.8,1800.5,6.10384446]
[1745868757786,5.55352787,1800.7,1800.4,0.7845]
[1745868758117,5.55352787,1800.7,1800.4,0.55]
[1745868758524,5.5538058,1800.6,1800.2,5.55476356]
[1745868758685,5.5538058,1800.6,1800.3,0.55]
[1745868758885,5.55384822,1800.6,1800.3,0.55]
[1745868759330,6.3481951,1800.7,1800.3,6.10447796]
[1745868759684,6.34799664,1800.7,1800.3,7.47791518]
[1745868759888,6.34799664,1800.7,1800.3,13.03237096]
[1745868760226,6.34799664,1800.7,1800.4,5.55430757]
[1745868760592,6.3479998,1800.7,1800.3,7.47791807]
[1745868761789,0.7946,1800.7,1800.4,5.55414729]
[1745868762097,0.7946,1800.7,1800.4,6.85742707]
[1745868762295,5.77,1800.8,1800.5,5.55377924]
[1745868762615,11.32319706,1800.8,1800.4,6.85734175]
[1745868762931,5.77,1800.8,1800.6,5.55350585]
[1745868763229,5.77,1800.8,1800.5,6.10385847]
[1745868763466,5.77,1800.8,1800.5,7.39998049]
[1745868764808,5.77,1800.8,1800.5,6.10385847]
[1745868765119,11.32325708,1800.8,1800.5,6.10398659]
[1745868765320,5.77,1800.8,1800.5,11.65785894]
[1745868765501,5.77,1800.8,1800.5,6.10387235]
[1745868765906,5.77,1800.8,1800.6,5.55362938]
[1745868766113,5.77,1800.8,1800.5,6.1038067]
[1745868766317,5.77,1800.8,1800.5,6.71418737]
[1745868766527,5.77,1800.8,1800.5,6.71416688]
[1745868766826,5.77,1800.8,1800.6,5.55368638]
[1745868767129,5.77,1800.8,1800.6,5.55355224]
[1745868767346,5.77,1800.8,1800.7,5.5533959]
[1745868767505,0.05,1800.9,1800.7,6.66409071]
[1745868767705,5.803,1800.9,1800.8,5.55308751]
[1745868768140,0.05,1800.9,1800.8,6.10308751]
[1745868774860,0.8321,1801.8,1801.4,5.55118954]
[1745868775015,0.8321,1801.5,1801.2,5.55160701]
[1745868775212,0.8321,1801.5,1801.3,6.10667812]
[1745868776029,0.8321,1801.5,1801.3,0.5551607]
[1745868776233,5.5515461,1801.3,1800.6,6.03]
[1745868776416,5.55259511,1801.0,1800.5,6.96611877]
[1745868776615,0.7737,1800.9,1800.5,1.41228067]
[1745868776820,5.55324114,1800.8,1800.3,6.93537502]
[1745868777144,5.55350005,1800.7,1800.3,6.93537502]
[1745868777350,6.32659301,1800.9,1800.5,5.5538652]
[1745868777521,6.32664938,1800.9,1800.4,5.55411502]
[1745868777849,6.32664938,1800.9,1800.5,5.55385427]
[1745868778469,0.7737,1800.9,1800.6,5.55355559]
[1745868778748,0.7737,1800.9,1800.5,6.12786808]
[1745868778749,6.32668552,1800.9,1800.5,6.12786808]
[1745868779350,0.7737,1800.9,1800.5,6.12786808]
[1745868779535,6.3264957,1800.9,1800.5,6.12785285]
[1745868780177,0.7737,1800.9,1800.5,6.12785285]
[1745868780377,6.32651999,1800.9,1800.5,6.12785285]
[1745868780536,5.55330208,1800.8,1800.4,0.55]
[1745868780871,5.55310079,1800.8,1800.4,0.55]
[1745868781069,5.55447852,1800.4,1799.9,11.5857293]
[1745868781288,5.752,1800.4,1799.9,6.3639185]
[1745868781570,5.752,1800.4,1800.2,0.55]
[1745868781774,5.752,1800.4,1800.2,5.55483859]
[1745868781931,5.752,1800.4,1800.2,5.55491245]
[1745868782135,5.752,1800.4,1800.2,5.55473388]
[1745868782369,5.752,1800.4,1800.3,5.55462978]
[1745868782602,5.752,1800.4,1800.3,6.66556615]
[1745868782798,6.36532978,1800.3,1799.8,5.5560341]
[1745868783086,0.8107,1800.3,1800.0,5.55536719]
[1745868783280,0.8107,1800.3,1800.1,5.55517018]
[1745868783570,0.7612,1800.5,1800.3,5.55445686]
[1745868783765,5.753,1800.5,1800.3,5.55445686]
[1745868783960,5.753,1800.5,1800.4,5.55432126]
[1745868784566,5.753,1800.7,1800.4,0.8095]
[1745868784769,5.753,1800.7,1800.5,5.55388719]
[1745868785167,5.753,1800.7,1800.5,5.5537879]
[1745868785369,6.5142,1800.7,1800.2,5.55474346]
[1745868785567,12.06769411,1800.7,1800.3,5.55450175]
[1745868785843,6.5142,1800.7,1800.4,5.55420084]
[1745868785977,6.5142,1800.7,1800.5,5.55384609]
[1745868786177,5.55413814,1800.5,1800.1,6.66619899]
[1745868786376,12.06772644,1800.7,1800.2,6.77145632]
[1745868786577,12.06772644,1800.7,1800.3,5.55441552]
[1745868787034,6.5142,1800.7,1800.4,5.55429223]
[1745868787617,12.067818,1800.7,1800.4,0.55]
[1745868788000,6.5142,1800.7,1800.4,6.10431704]
[1745868788543,6.5142,1800.7,1800.4,0.55]
[1745868788829,5.55388289,1800.6,1800.2,11.77611847]
[1745868788980,12.06780807,1800.7,1800.3,5.5546199]
[1745868789427,6.5142,1800.7,1800.5,5.55388321]
[1745868789778,6.5142,1800.7,1800.4,6.10412038]
[1745868790127,6.5142,1800.7,1800.3,5.5545315]
[1745868790300,6.5142,1800.7,1800.4,6.10959751]
[1745868790499,6.5142,1800.7,1800.5,5.55396723]
[1745868790705,5.753,1800.7,1800.6,5.55370432]
[1745868790901,5.753,1800.7,1800.5,5.55396723]
[1745868791289,5.753,1800.7,1800.6,6.10370432]
[1745868791581,5.753,1800.7,1800.6,7.26945594]
[1745868792878,5.753,1800.7,1800.6,1.71575162]
[1745868793075,5.753,1800.7,1800.6,7.26945594]
[1745868793708,5.753,1800.7,1800.6,1.71575162]
[1745868793898,5.753,1800.7,1800.5,11.10758177]
[1745868793899,5.753,1800.7,1800.5,6.10400984]
[1745868794096,5.753,1800.7,1800.5,0.55]
[1745868794499,5.753,1800.7,1800.5,6.10399082]
[1745868795218,5.753,1800.7,1800.6,5.55370432]
[1745868795611,5.753,1800.7,1800.5,0.55]
[1745868795924,5.753,1800.7,1800.6,5.55370432]
[1745868796835,5.753,1800.7,1800.5,6.10382003]
[1745868797134,5.753,1800.7,1800.6,5.55370432]
[1745868797502,5.753,1800.7,1800.5,6.7699309]
[1745868797701,5.753,1800.7,1800.5,6.10400358]
[1745868797994,5.753,1800.7,1800.5,0.55]
[1745868798215,5.753,1800.7,1800.5,6.10401075]
[1745868799325,5.753,1800.7,1800.5,6.10382909]
[1745868799492,5.753,1800.7,1800.5,6.10378734]
[1745868799694,5.753,1800.7,1800.6,5.55370432]